bitfinex/quotes_ETHUSD_20241231
["timestamp","ask_amount","ask_price","bid_price","bid_amount"]
[1735687789299,1.25427754,3347.7,3347.6,2.98719]
[1735687790394,2.65901909,3347.8,3347.6,2.98719]
[1735687792160,2.65901909,3347.8,3347.7,2.98712]
[1735687794131,1.25427754,3347.8,3347.7,2.98712]
[1735687797533,1.25427754,3347.8,3347.7,3.78602]
[1735687798319,1.25427754,3347.9,3347.8,2.98703]
[1735687799819,1.25427754,3348.1,3347.8,2.98703]
[1735687800013,1.25427754,3348.1,3347.8,3.66435]
[1735687800516,1.25427754,3348.1,3347.7,0.7989]
[1735687800764,0.8133,3348.0,3347.6,2.98713]
[1735687800915,0.8133,3348.0,3347.4,1.2576112]
[1735687801110,0.8133,3348.0,3347.4,4.2449212]
[1735687801362,0.8133,3348.0,3347.4,1.2576112]
[1735687801723,0.8133,3348.0,3347.4,4.2449712]
[1735687802222,1.25427754,3348.2,3347.7,2.98704]
[1735687802426,1.88141632,3347.8,3347.7,2.98704]
[1735687803772,1.25591086,3348.1,3347.5,0.7989]
[1735687803976,1.25591086,3348.1,3347.8,2.98703]
[1735687804271,1.25591086,3348.1,3347.5,0.7989]
[1735687804440,1.25591086,3348.1,3348.0,2.98685]
[1735687804641,1.25591086,3348.1,3348.0,3.74825]
[1735687805345,1.88141632,3348.2,3348.1,2.98676]
[1735687806174,1.88141632,3348.2,3348.1,5.98676]
[1735687807085,1.25609171,3348.6,3348.2,5.98661]
[1735687807234,0.8226,3348.5,3348.1,3.0]
[1735687807435,0.8226,3348.5,3348.2,2.98662]
[1735687807660,1.25609171,3348.6,3348.2,2.98662]
[1735687807935,1.25609171,3348.5,3348.2,2.98662]
[1735687808144,1.25609171,3348.5,3348.0,2.98681]
[1735687808383,1.25609171,3348.5,3347.8,3.74836]
[1735687808580,1.25609171,3348.5,3348.0,3.51680149]
[1735687808782,1.25609171,3348.5,3348.3,2.98651]
[1735687809202,1.25609171,3348.5,3348.1,0.7614]
[1735687809406,1.88141632,3348.6,3348.4,2.9865]
[1735687809545,1.88141632,3348.6,3348.5,2.98641]
[1735687809751,1.88141632,3348.6,3348.5,6.74781]
[1735687810964,1.25536228,3348.9,3348.7,2.98614]
[1735687812604,1.25536228,3349.1,3348.5,5.98634]
[1735687812779,0.8226,3348.8,3348.5,3.0]
[1735687812984,0.8226,3348.8,3348.4,3.0]
[1735687813177,0.8226,3348.8,3348.4,5.98649]
[1735687813680,0.8226,3348.8,3348.1,3.0]
[1735687814023,0.8226,3348.8,3348.2,2.9866]
[1735687815007,0.8226,3348.8,3348.3,2.98658]
[1735687815203,0.8226,3348.8,3348.4,2.98645]
[1735687815581,0.8226,3348.8,3347.9,3.7614]
[1735687815582,0.8226,3348.8,3348.2,2.98666]
[1735687815780,0.8226,3348.8,3347.8,2.98699]
[1735687815985,0.8226,3348.7,3347.8,2.98699]
[1735687816910,0.8226,3348.7,3347.9,3.0]
[1735687817202,2.07796228,3348.7,3347.9,5.98694]
[1735687817369,0.73413865,3348.6,3347.9,5.98694]
[1735687818208,2.07796228,3348.7,3347.6,3.7614]
[1735687818397,1.25536228,3348.6,3348.1,2.98676]
[1735687819357,0.8226,3348.7,3348.1,2.98676]
[1735687820113,0.8226,3348.7,3348.2,2.98666]
[1735687820315,0.8226,3348.7,3348.2,2.98661]
[1735687820678,0.8226,3348.7,3348.3,2.98657]
[1735687822451,0.8226,3348.7,3347.6,3.7614]
[1735687822576,0.8226,3348.7,3348.1,2.98675]
[1735687823033,0.8226,3348.7,3347.8,2.98699]
[1735687823238,0.8226,3348.7,3348.2,2.98662]
[1735687826313,0.8226,3348.7,3347.7,0.89888798]
[1735687826489,0.8226,3348.7,3348.3,2.98658]
[1735687826686,1.25536228,3348.8,3348.4,0.8094]
[1735687826900,1.25536228,3348.8,3348.4,3.79586]
[1735687827110,1.25536228,3348.8,3348.7,2.98623]
[1735687828817,1.25536228,3349.2,3348.8,2.98614]
[1735687830524,1.25536228,3349.2,3348.8,0.298614]
[1735687830680,1.25536228,3349.2,3348.0,2.98685]
[1735687830681,0.7693,3349.1,3348.7,2.9862]
[1735687833591,0.7693,3349.1,3348.3,0.8321]
[1735687833904,1.25536228,3349.2,3349.1,2.98587]
[1735687834316,0.752,3349.1,3348.0,3.0]
[1735687834493,0.752,3349.1,3348.6,2.98627]
[1735687834692,0.752,3349.1,3348.7,2.98622]
[1735687845410,0.752,3349.1,3348.1,0.87099415]
[1735687845411,0.752,3349.1,3348.1,3.85768415]
[1735687845610,0.752,3349.1,3348.0,2.0358112]
[1735687845611,0.752,3349.1,3348.3,2.98657]
[1735687846209,1.28872509,3349.0,3348.3,2.98657]
[1735687846401,0.752,3348.9,3348.3,2.98657]
[1735687846944,1.25536228,3348.8,3348.3,2.98657]
[1735687847939,1.25536228,3348.7,3348.3,2.98657]
[1735687848949,1.25536228,3348.6,3348.3,2.98657]
[1735687851266,1.25536228,3348.6,3347.8,2.987]
[1735687851267,1.12867786,3348.5,3347.8,2.987]
[1735687851582,0.815,3347.9,3347.7,1.2576112]
[1735687852890,0.815,3347.9,3347.3,2.98748]
[1735687852891,2.69641632,3347.9,3347.3,2.98748]
[1735687854060,2.69418781,3347.8,3347.3,2.98748]
[1735687855296,1.43960445,3347.8,3347.3,2.98748]
[1735687856260,2.06958336,3347.9,3347.3,2.98748]
[1735687857469,2.06958336,3347.9,3347.4,2.98738]
[1735687857662,0.815,3347.9,3347.4,2.98738]
[1735687858688,1.25458336,3348.0,3347.5,3.78979]
[1735687858887,2.06958336,3348.1,3347.5,3.78979]
[1735687859289,2.06958336,3348.1,3347.5,2.98729]
[1735687860183,0.815,3348.1,3347.5,2.98729]
[1735687860475,1.48234902,3348.1,3347.5,2.98729]
[1735687861002,0.815,3348.0,3347.3,2.98744]
[1735687862063,0.815,3348.0,3347.4,2.98739]
[1735687867258,0.815,3348.0,3346.9,0.8025]
[1735687867562,0.815,3348.0,3347.5,2.9873]
[1735687872867,0.815,3348.0,3347.3,2.9874]
[1735687873236,0.815,3348.0,3347.4,2.98738]
[1735687874671,2.72249049,3347.7,3346.9,0.8025]
[1735687874824,2.72249049,3347.7,3346.5,1.196792]
[1735687874825,0.7744,3347.3,3346.6,2.98802]
[1735687875430,0.7744,3347.3,3346.4,2.98821]
[1735687875629,0.7744,3347.0,3346.4,2.98821]
[1735687875865,0.7744,3347.0,3346.4,3.90032669]
[1735687876257,0.7744,3347.0,3346.3,1.2576112]
[1735687877254,0.7744,3347.0,3346.1,3.0]
[1735687877467,0.7744,3347.0,3346.4,2.98826]
[1735687879354,0.7744,3347.0,3346.2,2.98843]
[1735687880155,0.7953,3346.4,3345.6,2.98892]
[1735687880353,0.7953,3346.4,3345.4,0.7513]
[1735687880838,0.7953,3346.4,3345.5,3.0]
[1735687883004,0.7953,3346.4,3345.4,2.98916]
[1735687883164,0.7953,3346.4,3345.2,2.98932]
[1735687883365,0.7953,3346.2,3345.4,3.0]
[1735687884710,0.7953,3346.2,3345.3,2.98923]
[1735687885205,0.7953,3346.2,3345.4,2.98917]
[1735687886208,0.7953,3346.2,3345.2,3.973014]
[1735687886408,0.7953,3346.2,3345.2,3.0]
[1735687886567,0.7953,3346.2,3345.2,5.98935]
[1735687886878,0.7953,3346.2,3345.2,2.98935]
[1735687889004,0.7953,3346.2,3344.7,3.47379049]
[1735687889005,0.7953,3346.2,3345.3,2.98925]
[1735687889188,0.7953,3346.2,3344.9,2.98962]
[1735687889189,0.7953,3346.2,3345.0,3.47379049]
[1735687889400,0.7953,3346.2,3345.6,2.98892]
[1735687890127,0.7953,3346.2,3345.2,0.7513]
[1735687890322,0.7953,3346.2,3345.1,0.64634105]
[1735687890323,0.7953,3346.6,3345.9,2.98871]
[1735687893825,0.7953,3346.6,3345.4,5.9891]
[1735687894000,0.7953,3346.6,3345.5,2.98908]
[1735687894199,2.98807,3346.7,3345.5,2.98908]
[1735687894200,0.7912,3346.4,3345.5,2.98908]
[1735687894397,0.7912,3346.4,3345.6,2.98898]
[1735687895563,0.7912,3346.4,3345.4,2.98914]
[1735687895824,0.7912,3346.4,3345.0,3.7554]
[1735687895825,2.98833,3346.4,3345.0,3.7554]
[1735687895989,0.7912,3346.3,3345.3,2.98925]
[1735687897304,0.7912,3346.3,3345.0,6.47789049]
[1735687897503,0.7912,3346.3,3345.1,2.98944]
[1735687897704,0.7912,3346.2,3345.4,2.98916]
[1735687898541,0.7912,3346.2,3345.9,2.98871]
[1735687899262,0.7912,3346.2,3346.0,2.98863]
[1735687899802,0.7912,3346.2,3345.8,2.98875]
[1735687904242,0.7912,3346.2,3345.6,2.98897]
[1735687905743,0.7912,3346.2,3345.2,0.94673305]
[1735687906128,0.7912,3346.1,3345.0,2.98946]
[1735687906329,0.7912,3346.1,3345.2,2.9893]
[1735687909453,2.98864,3346.0,3344.7,2.72249049]
[1735687909658,0.7522,3345.5,3343.9,3.81059]
[1735687909952,0.7522,3345.2,3344.0,3.68589069]
[1735687910147,0.7522,3345.1,3344.0,3.68589069]
[1735687910551,0.7522,3345.3,3343.8,1.2576112]
[1735687910737,0.7522,3344.7,3343.8,1.2576112]
[1735687911056,0.7522,3344.7,3343.8,4.2481712]
[1735687911429,0.7522,3344.7,3343.8,1.2576112]
[1735687911740,0.7522,3344.7,3343.9,2.99051]
[1735687911937,0.7522,3344.7,3344.0,0.299051]
[1735687912163,0.7522,3345.4,3344.5,2.98998]
[1735687912362,0.7522,3345.4,3344.0,2.72249049]
[1735687912735,0.7522,3345.4,3344.4,2.99005]
[1735687912938,0.7522,3345.4,3344.5,2.98996]
[1735687912939,1.25458336,3345.2,3344.5,2.98996]
[1735687913138,0.7522,3345.1,3344.5,2.98996]
[1735687914751,0.7522,3345.1,3343.8,6.81066]
[1735687915350,0.7522,3345.0,3344.1,2.99033]
[1735687915662,0.7522,3345.0,3344.2,2.99024]
[1735687917159,0.7522,3345.0,3344.0,2.99036]
[1735687917361,0.7522,3345.0,3344.0,4.16070505]
[1735687920618,2.98955,3345.0,3344.0,4.16070505]
[1735687920890,0.7522,3344.9,3344.0,2.99036]
[1735687921222,0.7522,3344.8,3343.8,5.99056]
[1735687921668,0.7522,3344.6,3343.8,3.0]
[1735687922653,0.7522,3344.6,3343.7,2.99069]
[1735687922858,0.374201,3344.5,3343.7,2.99069]
[1735687923061,0.7522,3344.4,3343.7,2.99069]
[1735687924388,0.7522,3344.4,3343.4,0.8201]
[1735687924389,0.7522,3344.4,3343.8,2.99058]
[1735687927548,0.7522,3344.4,3343.7,2.72249049]
[1735687927839,1.25458336,3345.0,3344.9,2.98962]
[1735687927840,2.01958336,3345.0,3344.9,2.98962]
[1735687928042,1.25458336,3345.0,3344.9,2.98962]
[1735687928372,1.25458336,3345.1,3345.0,2.98953]
[1735687929835,0.765,3345.6,3345.2,2.98927]
[1735687931244,0.765,3345.6,3345.2,0.51110812]
[1735687931400,0.765,3345.6,3345.4,2.98916]
[1735687934879,0.765,3345.6,3345.2,2.98931]
[1735687939022,0.765,3345.6,3344.6,0.8185]
[1735687939188,0.765,3345.6,3344.6,3.8185]
[1735687939387,0.765,3345.6,3345.0,2.98952]
[1735687941225,0.765,3345.6,3344.6,0.8185]
[1735687941410,0.765,3345.6,3345.2,2.98934]
[1735687942342,0.765,3345.6,3344.8,2.98966]
[1735687942537,0.765,3345.6,3345.4,2.98917]
[1735687943309,0.765,3345.6,3345.5,2.98908]
[1735687944303,0.765,3345.6,3345.3,2.98922]
[1735687953147,0.765,3345.6,3345.0,2.98953]
[1735687953348,0.96695834,3345.6,3345.0,2.98953]
[1735687953571,0.96695834,3345.6,3344.7,4.187444]
[1735687953856,0.96695834,3345.6,3345.0,2.98946]
[1735687954257,0.809,3345.5,3344.8,2.98967]
[1735687954461,0.809,3345.3,3344.3,1.992396]
[1735687954660,2.98929,3345.3,3344.3,2.99008]
[1735687954958,0.809,3345.1,3344.0,1.2576112]
[1735687955118,0.809,3344.8,3344.0,1.2576112]
[1735687955518,0.809,3344.8,3343.9,2.99049]
[1735687955731,1.188864,3344.7,3343.9,2.99049]
[1735687957516,0.809,3344.6,3343.7,2.99065]
[1735687958961,0.809,3344.5,3343.7,2.99065]
[1735687960265,0.809,3344.5,3343.5,2.99085]
[1735687960438,0.809,3344.3,3343.5,2.99085]
[1735687961863,0.809,3344.3,3343.4,1.198169]
[1735687962023,0.809,3344.1,3342.9,2.99134]
[1735687962342,0.809,3344.1,3342.7,0.7946]
[1735687962343,0.809,3343.8,3342.8,1.198396]
[1735687962546,3.0,3343.6,3342.6,1.2576112]
[1735687962746,2.99089,3343.5,3342.6,1.2576112]
[1735687963058,3.0,3343.6,3342.5,1.2576112]
[1735687963059,0.809,3343.3,3342.5,1.2576112]
[1735687963371,0.809,3342.9,3342.5,1.2576112]
[1735687963656,0.809,3342.7,3342.5,1.2576112]
[1735687964651,0.809,3342.7,3342.2,2.4971169]
[1735687964652,0.809,3342.7,3341.2,2.99285]
[1735687965426,0.809,3342.7,3341.7,2.99248]
[1735687966237,0.809,3342.7,3342.2,2.99204]
[1735687966423,0.809,3342.7,3341.9,2.99222]
[1735687966761,1.01535834,3342.7,3342.0,2.99219]
[1735687967616,0.809,3342.7,3342.0,2.99219]
[1735687968258,0.809,3342.7,3341.7,0.7946]
[1735687968433,0.809,3342.7,3342.1,2.9921]
[1735687970089,0.809,3342.7,3342.1,2.99208]
[1735687972251,0.809,3342.7,3341.8,2.99239]
[1735687972451,0.809,3342.7,3342.2,2.99202]
[1735687973989,0.809,3342.7,3341.5,1.198847]
[1735687974189,0.765,3342.4,3341.5,2.99264]
[1735687974367,0.765,3342.4,3341.6,2.99256]
[1735687974547,1.440663,3342.4,3341.6,2.99256]
[1735687975290,1.440663,3342.4,3341.4,2.99272]
[1735687976285,1.440663,3342.4,3341.5,2.99264]
[1735687977158,1.440663,3342.4,3341.1,2.99302]
[1735687977357,0.765,3342.1,3341.0,1.198847]
[1735687977556,0.765,3342.1,3341.3,2.99278]
[1735687978562,0.765,3342.1,3341.2,2.99293]
[1735687980187,0.765,3342.1,3341.3,2.99282]
[1735687981159,0.765,3342.1,3341.1,1.06924475]
[1735687981363,0.765,3342.1,3341.7,2.99247]
[1735687983460,3.82491969,3343.6,3341.7,0.377037]
[1735687983461,0.8328,3343.2,3341.7,0.377037]
[1735687983702,0.8328,3343.2,3342.5,2.99174]
[1735687985259,0.8328,3343.2,3342.3,2.99188]
[1735687985872,0.8328,3343.2,3341.8,0.8197]
[1735687986147,0.8328,3343.2,3342.1,2.99205]
[1735687986148,0.8328,3343.0,3342.1,2.99205]
[1735687986377,0.8328,3342.9,3341.6,3.0]
[1735687986674,0.8328,3342.7,3341.7,2.99245]
[1735687986965,3.8328,3342.7,3341.7,2.99245]
[1735687987269,3.8328,3342.6,3341.7,2.99245]
[1735687987480,0.8328,3342.4,3341.2,3.81261]
[1735687987979,0.8328,3342.4,3341.6,2.99256]
[1735687989280,0.8328,3342.4,3341.2,3.81261]
[1735687989480,0.8328,3342.4,3341.4,2.99271]
[1735687989658,0.8328,3342.4,3341.2,0.8197]
[1735687989659,2.99204,3342.2,3341.2,2.99289]
[1735687989979,0.8328,3342.0,3341.2,2.99289]
[1735687991118,0.8328,3342.0,3341.3,2.99282]
[1735687991319,0.8328,3342.0,3341.5,2.99258]
[1735687991588,0.8328,3342.0,3340.9,8.011857]
[1735687991718,0.8328,3342.0,3341.8,2.99239]
[1735687993261,0.8328,3342.7,3341.8,2.99239]
[1735687993474,0.982424,3342.6,3341.5,0.8197]
[1735687993617,0.8328,3342.7,3341.6,2.99257]
[1735687993963,0.8328,3342.7,3342.3,2.99186]
[1735687996775,0.8328,3342.7,3342.1,2.9921]
[1735687996980,0.8328,3342.7,3341.9,2.99228]
[1735687997177,0.8328,3342.7,3341.9,3.291508]
[1735687998063,0.8328,3342.7,3342.1,2.99204]
[1735687998704,0.8328,3342.7,3341.9,3.291508]
[1735687998871,0.7828,3343.4,3343.0,2.99125]
[1735687999149,0.7828,3343.4,3343.0,0.299125]
[1735687999356,2.03738336,3343.7,3343.3,2.99097]
[1735687999551,2.03738336,3343.7,3343.1,2.99114]
[1735687999753,2.03738336,3343.7,3342.7,0.7826]
[1735687999960,2.03738336,3343.7,3343.4,2.99088]
[1735688000125,0.7828,3343.7,3343.4,2.99088]
[1735688001725,0.7828,3343.7,3342.8,3.0]
[1735688001928,0.7828,3344.3,3343.5,2.99083]
[1735688002630,0.7828,3344.3,3342.9,0.65050905]
[1735688002833,6.49545049,3344.3,3343.3,2.99097]
[1735688003717,0.7828,3343.9,3342.4,0.7826]
[1735688003915,3.77339,3343.9,3342.4,0.7826]
[1735688004138,0.64958805,3343.8,3342.6,0.37826]
[1735688004330,3.64020805,3343.8,3342.6,0.37826]
[1735688004525,3.64020805,3343.8,3342.8,2.99148]
[1735688004962,0.7828,3343.7,3342.8,2.99148]
[1735688005323,3.77352,3343.7,3342.8,2.99148]
[1735688005969,0.7828,3343.7,3342.8,2.99148]
[1735688006256,0.7828,3343.7,3342.4,3.7826]
[1735688006463,0.7828,3343.7,3343.4,2.99091]
[1735688007020,0.7828,3343.7,3343.0,2.99128]
[1735688007317,0.7828,3343.7,3342.7,2.99159]
[1735688007526,0.7828,3343.7,3342.8,2.99148]
[1735688008676,0.7828,3343.7,3342.6,3.7826]
[1735688008854,1.43237505,3343.7,3342.8,2.99141]
[1735688009166,0.9887247,3343.6,3342.9,2.99141]
[1735688009366,0.9887247,3343.6,3342.6,4.460035]
[1735688009367,0.9887247,3343.6,3342.6,3.7826]
[1735688009570,0.9887247,3343.6,3342.8,2.99148]
[1735688009780,0.66663731,3343.5,3342.8,2.99148]
[1735688010486,0.66663731,3343.5,3343.0,2.99131]
[1735688011360,0.66663731,3343.5,3342.6,0.7826]
[1735688011652,0.66663731,3343.5,3342.8,2.99149]
[1735688012439,0.7828,3343.4,3342.5,2.9917]
[1735688012640,0.7828,3343.4,3342.1,2.99206]
[1735688012641,0.7828,3343.2,3342.3,2.99188]
[1735688012846,0.7828,3343.2,3342.4,2.99184]
[1735688018702,0.98827784,3343.1,3342.4,2.99184]
[1735688019699,0.7828,3343.2,3342.4,2.99184]
[1735688020002,0.68511914,3343.1,3342.4,2.99184]
[1735688020798,0.68511914,3343.1,3342.5,2.99176]
[1735688021085,1.25458336,3343.3,3343.1,2.99116]
[1735688021677,1.25458336,3343.3,3343.0,2.9913]
[1735688022711,0.8068,3343.4,3343.0,2.9913]
[1735688030705,1.01293834,3343.4,3342.4,3.0]
[1735688030894,1.01293834,3343.4,3342.5,2.99174]
[1735688031101,0.7574,3343.2,3342.2,2.99197]
[1735688031283,0.7574,3343.1,3342.2,2.99197]
[1735688033037,0.7574,3342.9,3342.2,2.99197]
[1735688035328,0.7574,3342.9,3342.5,2.99175]
[1735688035535,1.25458336,3343.0,3342.9,2.99141]
[1735688037151,0.7574,3343.2,3342.9,2.99141]
[1735688038514,2.01198336,3343.5,3342.9,2.99141]
[1735688038863,0.7574,3343.4,3341.9,2.0239112]
[1735688038991,3.7574,3342.9,3342.1,2.99211]
[1735688039368,0.7574,3342.9,3341.9,2.0239112]
[1735688039497,0.7574,3342.9,3342.5,2.99174]
[1735688040249,0.7574,3342.9,3342.3,2.99192]
[1735688040414,1.02128163,3342.9,3342.1,2.9921]
[1735688041235,1.02128163,3342.9,3341.9,3.75857]
[1735688041552,1.02128163,3342.9,3342.0,2.99219]
[1735688041713,3.72813441,3342.8,3342.0,2.99219]
[1735688042339,3.72813441,3342.8,3342.1,2.99213]
[1735688043151,2.73747613,3342.7,3342.1,2.99213]
[1735688043349,2.73747613,3342.7,3342.0,0.375849]
[1735688043546,2.73747613,3342.7,3341.9,3.75859]
[1735688043802,2.73747613,3342.7,3342.0,2.99219]
[1735688044447,1.25148871,3342.6,3342.0,2.99219]
[1735688045760,2.24214699,3342.7,3342.0,2.99219]
[1735688047285,1.48611329,3342.6,3342.0,2.99219]
[1735688048803,1.25148871,3342.6,3342.0,2.99219]
[1735688050485,0.8162,3342.5,3341.3,1.2576112]
[1735688050638,0.8162,3342.5,3341.8,2.99239]
[1735688051483,0.99065828,3342.4,3341.8,2.99239]
[1735688054575,2.24214699,3342.4,3341.8,2.99239]
[1735688057789,2.24214699,3342.4,3341.9,2.9923]
[1735688057994,0.99065828,3342.4,3341.9,2.9923]
[1735688059924,0.8162,3342.3,3341.4,3.0]
[1735688060130,0.8162,3342.3,3341.9,2.99224]
[1735688063388,1.25148871,3342.6,3341.8,1.3109]
[1735688063611,1.25148871,3342.6,3342.5,3.75267]
[1735688064750,1.25148871,3343.2,3342.5,3.75267]
[1735688064925,1.25148871,3343.2,3342.7,2.99159]
[1735688065123,1.64639921,3343.2,3342.4,2.99178]
[1735688065451,0.8162,3343.1,3342.4,2.99178]
[1735688066532,2.06768871,3343.0,3342.4,2.99178]
[1735688071733,1.46031966,3342.9,3342.4,2.99178]
[1735688071930,0.8162,3342.8,3341.5,4.6337012]
[1735688072257,0.8162,3342.8,3341.7,2.9924]
[1735688072766,2.06768871,3342.8,3341.7,2.9924]
[1735688073066,0.7676,3342.6,3341.7,2.99248]
[1735688074197,1.25148871,3342.2,3341.7,2.99248]
[1735688074398,0.7676,3342.1,3341.7,2.99248]
[1735688076090,1.25148871,3342.3,3342.2,2.99204]
[1735688076458,1.25148871,3342.3,3342.0,2.9922]
[1735688077256,2.01908871,3342.5,3342.0,2.9922]
[1735688077556,0.7676,3342.4,3341.7,2.99241]
[1735688078605,1.25148871,3342.3,3341.7,2.99241]
[1735688079791,1.25148871,3342.3,3341.8,2.99237]
[1735688080360,1.46126823,3342.3,3341.8,2.99237]
[1735688081707,2.01908871,3342.4,3341.8,2.99237]
[1735688083304,2.65999472,3342.4,3341.8,2.99237]
[1735688084106,2.71288824,3342.3,3341.8,2.99237]
[1735688085004,1.25148871,3342.2,3341.8,2.99237]
[1735688086268,2.71288824,3342.3,3341.6,2.99257]
[1735688086569,2.71288824,3342.3,3342.2,2.99204]
[1735688086795,2.71288824,3342.3,3342.2,3.291244]
[1735688087706,1.25148871,3342.4,3342.3,2.99195]
[1735688088274,1.25148871,3342.4,3342.0,0.7996]
[1735688088671,1.25148871,3342.7,3342.0,0.7996]
[1735688088867,1.25148871,3342.7,3342.3,2.99188]
[1735688089959,1.25148871,3342.7,3342.4,2.99185]
[1735688094072,2.7136619,3342.7,3342.4,2.99185]
[1735688096262,1.25148871,3342.7,3342.4,2.99185]
[1735688096480,1.25148871,3342.7,3342.3,2.99194]
[1735688097245,1.25148871,3342.7,3342.4,2.99178]
[1735688100436,2.7136619,3342.8,3342.4,2.99178]
[1735688101073,2.7136619,3342.8,3342.2,2.992]
[1735688101274,2.7136619,3342.8,3342.0,2.99217]
[1735688101453,0.7776,3342.7,3342.0,2.99217]
[1735688101656,1.61400582,3342.7,3342.0,2.99217]
[1735688102048,0.7776,3342.6,3341.7,4.2500712]
[1735688102456,1.25148871,3342.5,3341.7,2.99246]
[1735688103683,1.25148871,3342.3,3341.7,2.99246]
[1735688103882,0.7776,3342.2,3341.7,2.99246]
[1735688104783,2.02908871,3342.2,3341.7,2.99246]
[1735688105484,2.02908871,3342.2,3341.6,2.99257]
[1735688105683,0.7696,3342.1,3341.1,1.2576112]
[1735688105983,0.7696,3342.1,3341.2,1.2576112]
[1735688107477,1.25148871,3341.7,3341.1,2.99301]
[1735688107961,1.25148871,3341.7,3341.1,3.4902544]
[1735688108486,1.25148871,3341.7,3341.2,2.99291]
[1735688108686,2.71276303,3341.8,3341.2,2.99291]
[1735688108883,2.71276303,3341.8,3341.1,0.4972444]
[1735688109085,2.71276303,3341.8,3341.3,2.99284]
[1735688109245,2.71276303,3341.8,3341.3,3.34184844]
[1735688110182,1.25148871,3341.9,3341.3,3.34184844]
[1735688110358,1.25148871,3341.9,3341.3,0.34900844]
[1735688110558,0.7696,3341.7,3340.5,0.7805]
[1735688110882,3.0,3341.8,3340.4,1.88690569]
[1735688110883,0.7696,3341.2,3340.4,1.88690569]
[1735688111054,0.7696,3341.1,3340.4,1.88690569]
[1735688111265,0.7696,3341.0,3340.7,1.2576112]
[1735688113182,0.7696,3341.0,3340.0,2.99396]
[1735688113183,3.71151421,3340.9,3340.0,2.99396]
[1735688114675,0.7696,3341.0,3340.0,2.99396]
[1735688117392,1.25148871,3341.2,3340.1,0.7805]
[1735688117590,1.25148871,3341.2,3340.8,2.9932]
[1735688118958,0.7696,3341.3,3340.8,2.9932]
[1735688120497,0.7696,3341.3,3340.4,2.99356]
[1735688120799,0.8271,3341.2,3340.2,2.9938]
[1735688121187,0.8271,3341.0,3339.8,3.8113]
[1735688121499,0.8271,3341.0,3340.3,2.99373]
[1735688123500,0.8271,3341.0,3340.1,2.99383]
[1735688123703,0.8271,3341.0,3339.6,2.010649]
[1735688124492,0.8271,3341.0,3340.2,2.99379]
[1735688125271,1.509097,3341.0,3340.2,2.99379]
[1735688126291,1.509097,3341.0,3340.3,2.99371]
[1735688127186,0.8271,3341.0,3340.4,2.99359]
[1735688128698,0.8271,3341.0,3339.8,6.54419]
[1735688129023,0.8271,3341.0,3340.6,2.99344]
[1735688136116,0.8271,3341.0,3340.4,1.199247]
[1735688136317,0.8271,3341.0,3340.4,4.192827]
[1735688139536,0.8271,3341.0,3340.4,4.6121097]
[1735688140606,0.8271,3341.0,3340.5,2.99356]
[1735688144288,0.8322,3341.4,3340.5,2.99356]
[1735688144495,0.8322,3341.4,3341.3,2.99284]
[1735688144796,1.25148871,3341.4,3341.3,2.99284]
[1735688145736,1.25148871,3341.4,3341.1,2.99298]
[1735688146198,1.25148871,3341.4,3341.1,0.679265]
[1735688146402,1.25148871,3341.4,3341.3,2.99284]
[1735688146603,0.8322,3341.9,3341.4,2.99268]
[1735688149443,0.8322,3341.9,3341.5,2.99262]
[1735688150916,1.25148871,3342.1,3341.5,1.112862]
[1735688151115,1.25148871,3342.1,3341.8,2.99239]
[1735688151901,0.7572,3342.0,3341.1,0.8136]
[1735688152100,0.7572,3342.0,3340.8,0.8136]
[1735688152313,0.7572,3342.0,3341.2,2.99292]
[1735688153407,1.25148871,3341.7,3341.2,2.99292]
[1735688154545,2.25123367,3341.8,3341.2,2.99292]
[1735688155750,1.49976323,3341.7,3341.2,2.99292]
[1735688156245,1.49976323,3341.7,3340.9,3.0]
[1735688156410,1.49976323,3341.7,3341.3,2.99283]
[1735688157152,1.25148871,3341.8,3341.3,2.99283]
[1735688157329,2.25123367,3341.8,3341.3,2.99283]
[1735688157861,0.7572,3341.7,3341.3,2.99283]
[1735688158350,0.7572,3341.7,3341.0,0.68136]
[1735688158351,0.7572,3341.7,3341.1,2.99298]
[1735688158557,2.00868871,3341.7,3341.1,2.99298]
[1735688159561,3.75103561,3341.6,3341.1,2.99298]
[1735688160626,1.49980194,3341.5,3341.1,2.99298]
[1735688161622,1.49980194,3341.5,3341.2,2.9929]
[1735688162127,0.7572,3341.4,3340.9,1.199023]
[1735688162465,0.7572,3341.4,3340.2,0.8136]
[1735688162636,0.7572,3341.4,3340.5,2.99348]
[1735688163434,0.7572,3341.4,3340.6,2.99346]
[1735688163633,1.60933452,3341.4,3340.6,2.99346]
[1735688164041,0.7743,3341.1,3340.6,2.99346]
[1735688166211,1.00067875,3341.0,3340.6,2.99346]
[1735688167059,1.00067875,3341.0,3340.3,2.99366]
[1735688167264,0.7743,3340.9,3340.3,2.99366]
[1735688169676,0.7743,3340.9,3340.2,2.99383]
[1735688169880,0.7743,3340.9,3340.3,0.7959312]
[1735688171514,0.7743,3340.9,3340.3,3.7895912]
[1735688173898,1.00114273,3340.8,3340.3,3.7895912]
[1735688175323,1.00114273,3340.8,3340.3,0.7959312]
[1735688175629,1.25148871,3341.0,3340.4,0.7722]
[1735688175811,1.25148871,3341.0,3340.7,2.99332]
[1735688177013,2.65571632,3341.1,3340.7,2.99332]
[1735688177014,0.7743,3341.1,3340.7,2.99332]
[1735688179726,0.7743,3341.1,3340.1,2.99389]
[1735688179727,0.7743,3341.1,3340.0,2.99401]
[1735688179929,0.7743,3341.1,3340.1,0.50207212]
[1735688181031,0.7743,3341.1,3340.1,3.49596212]
[1735688181229,1.25148871,3340.8,3340.1,2.99389]